[Event "*** Titled Tuesday Blitz"]
[Site "Chess.com"]
[Date "2021.03.09"]
[Round "2"]
[White "QuintilianoR"]
[Black "crazy_but_lazy"]
[Result "0-1"]
[WhiteElo "2696"]
[BlackElo "2512"]
[TimeControl "180+1"]
[EndTime "10:20:45 PST"]
[Termination "crazy_but_lazy won by resignation"]

1. d4 {[%clk 0:03:00.9]} 1... d5 {[%clk 0:02:59]} 2. c4 {[%clk 0:03:00.7]} 2...
e5 {[%clk 0:02:58.1]} 3. dxe5 {[%clk 0:03:00.4]} 3... Ne7 {[%clk 0:02:57.5]} 4.
Nf3 {[%clk 0:02:55.5]} 4... Nbc6 {[%clk 0:02:51.9]} 5. g3 {[%clk 0:02:33]} 5...
Bg4 {[%clk 0:02:48]} 6. Bg2 {[%clk 0:02:26]} 6... Bxf3 {[%clk 0:02:24.6]} 7.
Bxf3 {[%clk 0:02:23.9]} 7... Nxe5 {[%clk 0:02:24.7]} 8. Bxd5 {[%clk 0:02:23.1]}
8... c6 {[%clk 0:02:22.8]} 9. Bg2 {[%clk 0:02:18.4]} 9... Qxd1+ {[%clk
0:02:20.4]} 10. Kxd1 {[%clk 0:02:19.3]} 10... Nxc4 {[%clk 0:02:20.1]} 11. b3
{[%clk 0:02:19.3]} 11... Rd8+ {[%clk 0:02:09]} 12. Kc2 {[%clk 0:02:18.7]} 12...
Ne5 {[%clk 0:02:06.5]} 13. Bb2 {[%clk 0:02:13.6]} 13... N7g6 {[%clk 0:02:00.7]}
14. h3 {[%clk 0:02:07.6]} 14... f6 {[%clk 0:01:51.4]} 15. Nd2 {[%clk 0:02:02.3]}
15... Bb4 {[%clk 0:01:50.3]} 16. Rad1 {[%clk 0:01:59.2]} 16... O-O {[%clk
0:01:44.3]} 17. f4 {[%clk 0:01:53]} 17... Nf7 {[%clk 0:01:39]} 18. e4 {[%clk
0:01:48.4]} 18... Nd6 {[%clk 0:01:04.5]} 19. a3 {[%clk 0:01:14.5]} 19... Bc5
{[%clk 0:00:52.5]} 20. Rhf1 {[%clk 0:01:12.2]} 20... Nb5 {[%clk 0:00:49.4]} 21.
b4 {[%clk 0:01:01.1]} 21... Nd4+ {[%clk 0:00:34.8]} 22. Kb1 {[%clk 0:00:59.4]}
22... Bb6 {[%clk 0:00:31.3]} 23. Rde1 {[%clk 0:00:22.9]} 23... Rfe8 {[%clk
0:00:24.8]} 24. Nc4 {[%clk 0:00:21.4]} 24... Bc7 {[%clk 0:00:22.1]} 25. h4
{[%clk 0:00:21.4]} 25... Nf8 {[%clk 0:00:15.7]} 26. h5 {[%clk 0:00:20.6]} 26...
Nfe6 {[%clk 0:00:15.7]} 27. Ne3 {[%clk 0:00:19.2]} 27... a5 {[%clk 0:00:14.6]}
28. Bh3 {[%clk 0:00:18.2]} 28... axb4 {[%clk 0:00:12.2]} 29. axb4 {[%clk
0:00:18.3]} 29... Nb3 {[%clk 0:00:12.9]} 30. Bc1 {[%clk 0:00:13]} 30... Ned4
{[%clk 0:00:11]} 31. Nc2 {[%clk 0:00:13]} 31... Nxc1 {[%clk 0:00:08.3]} 32. Kxc1
{[%clk 0:00:12.7]} 32... Bb6 {[%clk 0:00:06.9]} 33. Rd1 {[%clk 0:00:11]} 33...
Nb3+ {[%clk 0:00:06.9]} 34. Kb2 {[%clk 0:00:11.5]} 34... Nd2 {[%clk 0:00:07.3]}
35. Rfe1 {[%clk 0:00:10.4]} 35... Bf2 {[%clk 0:00:06.7]} 36. Re2 {[%clk
0:00:09.9]} 36... Nc4+ {[%clk 0:00:06.9]} 37. Kc3 {[%clk 0:00:10.5]} 37... Rxd1
{[%clk 0:00:07.6]} 38. Rxf2 {[%clk 0:00:11.1]} 38... Nb6 {[%clk 0:00:06.8]} 39.
Re2 {[%clk 0:00:11.1]} 39... Rg1 {[%clk 0:00:06]} 40. Re3 {[%clk 0:00:08.4]}
40... Rd8 {[%clk 0:00:05.1]} 41. Be6+ {[%clk 0:00:06.8]} 41... Kf8 {[%clk
0:00:05.4]} 42. Bb3 {[%clk 0:00:07.7]} 42... Re8 {[%clk 0:00:05.8]} 43. e5
{[%clk 0:00:08.1]} 43... Nd5+ {[%clk 0:00:05.5]} 44. Bxd5 {[%clk 0:00:07.9]}
44... cxd5 {[%clk 0:00:06.4]} 45. Nd4 {[%clk 0:00:08.5]} 45... fxe5 {[%clk
0:00:06.5]} 46. fxe5 {[%clk 0:00:09.1]} 46... Rh1 {[%clk 0:00:07]} 47. Rf3+
{[%clk 0:00:09.6]} 47... Kg8 {[%clk 0:00:07.1]} 48. g4 {[%clk 0:00:10.5]} 48...
Rg1 {[%clk 0:00:06.7]} 49. Nf5 {[%clk 0:00:10.7]} 49... Rxg4 {[%clk 0:00:06.1]}
50. h6 {[%clk 0:00:10.2]} 50... Rg6 {[%clk 0:00:04]} 51. hxg7 {[%clk 0:00:10.1]}
51... Rxe5 {[%clk 0:00:03.5]} 52. Kd4 {[%clk 0:00:10.1]} 52... Rxf5 {[%clk
0:00:03.4]} 53. Rxf5 {[%clk 0:00:09.8]} 53... Kxg7 {[%clk 0:00:04.3]} 54. Rxd5
{[%clk 0:00:10.1]} 54... Rb6 {[%clk 0:00:04.2]} 55. Kc5 {[%clk 0:00:09.8]} 55...
Rc6+ {[%clk 0:00:04.7]} 56. Kb5 {[%clk 0:00:09.7]} 56... Rc7 {[%clk 0:00:05.6]}
57. Kb6 {[%clk 0:00:10.3]} 57... Rf7 {[%clk 0:00:05.3]} 58. Rc5 {[%clk
0:00:11.2]} 58... Kg6 {[%clk 0:00:05.4]} 59. b5 {[%clk 0:00:12.1]} 59... h5
{[%clk 0:00:05.5]} 60. Rc7 {[%clk 0:00:13]} 60... Rxc7 {[%clk 0:00:04.6]} 61.
Kxc7 {[%clk 0:00:13.9]} 61... h4 {[%clk 0:00:05.5]} 62. b6 {[%clk 0:00:14.5]}
62... h3 {[%clk 0:00:06.4]} 63. Kxb7 {[%clk 0:00:15.4]} 63... h2 {[%clk
0:00:07.3]} 64. Ka7 {[%clk 0:00:16.3]} 64... h1=Q {[%clk 0:00:08.2]} 65. b7
{[%clk 0:00:17.2]} 65... Qa1+ {[%clk 0:00:08.7]} 66. Kb8 {[%clk 0:00:17.7]}
66... Qd4 {[%clk 0:00:09.5]} 67. Kc7 {[%clk 0:00:18.3]} 67... Qc5+ {[%clk
0:00:10.1]} 68. Kd7 {[%clk 0:00:19]} 68... Qb6 {[%clk 0:00:08.1]} 69. Kc8 {[%clk
0:00:19.6]} 69... Qc6+ {[%clk 0:00:07.2]} 70. Kb8 {[%clk 0:00:20.5]} 70... Kf6
{[%clk 0:00:07.1]} 71. Ka7 {[%clk 0:00:21.4]} 71... Qc7 {[%clk 0:00:05.3]} 72.
Ka8 {[%clk 0:00:21.8]} 72... Qa5+ {[%clk 0:00:05.6]} 73. Kb8 {[%clk 0:00:22.7]}
73... Ke6 {[%clk 0:00:05.8]} 74. Kc8 {[%clk 0:00:23.1]} 74... Qc5+ {[%clk
0:00:05.5]} 75. Kd8 {[%clk 0:00:23.4]} 75... Qb6+ {[%clk 0:00:05.5]} 76. Kc8
{[%clk 0:00:23.8]} 76... Qc6+ {[%clk 0:00:06.1]} 77. Kb8 {[%clk 0:00:22.9]}
77... Kd7 {[%clk 0:00:06.8]} 78. Ka8 {[%clk 0:00:23.8]} 78... Qa4+ {[%clk
0:00:07.1]} 79. Kb8 {[%clk 0:00:24]} 79... Qb5 {[%clk 0:00:07.5]} 80. Ka8 {[%clk
0:00:24.2]} 80... Kc7 {[%clk 0:00:08]} 0-1

[Event "*** Titled Tuesday Blitz"]
[Site "Chess.com"]
[Date "2021.03.09"]
[Round "2"]
[White "dropstoneDP"]
[Black "Nuvas"]
[Result "1/2-1/2"]
[WhiteElo "2898"]
[BlackElo "2566"]
[TimeControl "180+1"]
[EndTime "10:20:51 PST"]
[Termination "Game drawn by repetition"]

1. d4 {[%clk 0:03:00.9]} 1... d5 {[%clk 0:02:59.1]} 2. c4 {[%clk 0:02:57.7]}
2... c6 {[%clk 0:02:59.2]} 3. Nf3 {[%clk 0:02:57.4]} 3... Nf6 {[%clk 0:02:59.6]}
4. Nc3 {[%clk 0:02:58.1]} 4... e6 {[%clk 0:03:00]} 5. Bd2 {[%clk 0:02:56.6]}
5... Nbd7 {[%clk 0:02:59.1]} 6. e3 {[%clk 0:02:55.9]} 6... Bd6 {[%clk
0:02:58.3]} 7. Bd3 {[%clk 0:02:55.2]} 7... a6 {[%clk 0:02:53.6]} 8. O-O {[%clk
0:02:54.2]} 8... O-O {[%clk 0:02:49.2]} 9. cxd5 {[%clk 0:02:54.2]} 9... exd5
{[%clk 0:02:45.1]} 10. Re1 {[%clk 0:02:50.6]} 10... Re8 {[%clk 0:02:45.2]} 11.
h3 {[%clk 0:02:49.7]} 11... Nf8 {[%clk 0:02:42.8]} 12. Qc2 {[%clk 0:02:45.5]}
12... g6 {[%clk 0:02:38]} 13. Rad1 {[%clk 0:02:42.6]} 13... Ne6 {[%clk
0:02:37.7]} 14. a3 {[%clk 0:02:39.3]} 14... Ng7 {[%clk 0:02:37.5]} 15. e4 {[%clk
0:02:39.2]} 15... dxe4 {[%clk 0:02:37.7]} 16. Nxe4 {[%clk 0:02:40.1]} 16... Nxe4
{[%clk 0:02:37.9]} 17. Bxe4 {[%clk 0:02:39.4]} 17... Bf5 {[%clk 0:02:36.1]} 18.
Bg5 {[%clk 0:02:30]} 18... Qd7 {[%clk 0:02:35.1]} 19. Ne5 {[%clk 0:02:21.8]}
19... Bxe4 {[%clk 0:02:34.8]} 20. Rxe4 {[%clk 0:02:15.9]} 20... Qf5 {[%clk
0:02:28.3]} 21. Bf4 {[%clk 0:01:22.9]} 21... f6 {[%clk 0:02:01]} 22. Ng4 {[%clk
0:00:33.6]} 22... Bxf4 {[%clk 0:01:58.4]} 23. Rxe8+ {[%clk 0:00:32.3]} 23...
Rxe8 {[%clk 0:01:58.4]} 24. Qxf5 {[%clk 0:00:32.2]} 24... Nxf5 {[%clk
0:01:50.6]} 25. Nxf6+ {[%clk 0:00:32.6]} 25... Kf7 {[%clk 0:01:51.3]} 26. Nxe8
{[%clk 0:00:33.4]} 26... Kxe8 {[%clk 0:01:52]} 27. Kf1 {[%clk 0:00:34.1]} 27...
Kd7 {[%clk 0:01:43.6]} 28. Ke2 {[%clk 0:00:33.3]} 28... Bg5 {[%clk 0:01:43]} 29.
Kd3 {[%clk 0:00:26]} 29... Bf6 {[%clk 0:01:34.5]} 30. g4 {[%clk 0:00:20.8]}
30... Ne7 {[%clk 0:01:06.4]} 31. f4 {[%clk 0:00:16.4]} 31... Nd5 {[%clk
0:01:06]} 32. Ke4 {[%clk 0:00:16.5]} 32... Kd6 {[%clk 0:01:06.4]} 33. g5 {[%clk
0:00:10.2]} 33... Bg7 {[%clk 0:01:04.3]} 34. h4 {[%clk 0:00:10.4]} 34... Ne7
{[%clk 0:01:02.8]} 35. h5 {[%clk 0:00:09]} 35... Nf5 {[%clk 0:01:02.9]} 36. h6
{[%clk 0:00:08.7]} 36... Bh8 {[%clk 0:01:03.1]} 37. d5 {[%clk 0:00:07.7]} 37...
Bxb2 {[%clk 0:00:42]} 38. dxc6+ {[%clk 0:00:07.5]} 38... Kxc6 {[%clk 0:00:42.9]}
39. Rd8 {[%clk 0:00:05.3]} 39... b5 {[%clk 0:00:39.4]} 40. Ra8 {[%clk 0:00:04]}
40... Kb6 {[%clk 0:00:34.7]} 41. Rb8+ {[%clk 0:00:04.3]} 41... Kc6 {[%clk
0:00:20.6]} 42. Ra8 {[%clk 0:00:04.7]} 42... Kb7 {[%clk 0:00:17.6]} 43. Rf8
{[%clk 0:00:03.7]} 43... Nd6+ {[%clk 0:00:17.9]} 44. Kd5 {[%clk 0:00:03.6]}
44... Bxa3 {[%clk 0:00:18.4]} 45. Rh8 {[%clk 0:00:03.4]} 45... b4 {[%clk
0:00:14.9]} 46. Rxh7+ {[%clk 0:00:04.3]} 46... Kb6 {[%clk 0:00:14.2]} 47. Re7
{[%clk 0:00:02.7]} 47... b3 {[%clk 0:00:13.7]} 48. Re3 {[%clk 0:00:02.8]} 48...
b2 {[%clk 0:00:10.3]} 49. Rb3+ {[%clk 0:00:03.5]} 49... Kc7 {[%clk 0:00:10.2]}
50. h7 {[%clk 0:00:04.1]} 50... Nf7 {[%clk 0:00:10.4]} 51. Ke6 {[%clk
0:00:04.4]} 51... Nh8 {[%clk 0:00:10.4]} 52. Kf6 {[%clk 0:00:05]} 52... Bc5
{[%clk 0:00:09.8]} 53. Kg7 {[%clk 0:00:02]} 53... Bd4+ {[%clk 0:00:09.9]} 54.
Kg8 {[%clk 0:00:02.6]} 54... a5 {[%clk 0:00:09.8]} 55. Rb5 {[%clk 0:00:01.7]}
55... Kc6 {[%clk 0:00:08.5]} 56. Rb8 {[%clk 0:00:01.6]} 56... a4 {[%clk
0:00:08.6]} 57. f5 {[%clk 0:00:02.3]} 57... gxf5 {[%clk 0:00:08.2]} 58. Rb4
{[%clk 0:00:02.4]} 58... Kc5 {[%clk 0:00:04.4]} 59. Rxd4 {[%clk 0:00:02.1]}
59... Kxd4 {[%clk 0:00:05.3]} 60. Kxh8 {[%clk 0:00:02.6]} 60... b1=Q {[%clk
0:00:05.7]} 61. g6 {[%clk 0:00:02.3]} 61... Qb8+ {[%clk 0:00:03.9]} 62. Kg7
{[%clk 0:00:02.4]} 62... Qc7+ {[%clk 0:00:04.6]} 63. Kh6 {[%clk 0:00:03.1]}
63... Qh2+ {[%clk 0:00:03.2]} 64. Kg7 {[%clk 0:00:03.3]} 64... Qe5+ {[%clk
0:00:04]} 65. Kg8 {[%clk 0:00:03]} 65... Qe8+ {[%clk 0:00:04.1]} 66. Kg7 {[%clk
0:00:03.6]} 66... Qe7+ {[%clk 0:00:04]} 67. Kg8 {[%clk 0:00:04.3]} 67... Qe8+
{[%clk 0:00:03.5]} 68. Kg7 {[%clk 0:00:04.9]} 68... Qd7+ {[%clk 0:00:04.4]} 69.
Kg8 {[%clk 0:00:05.1]} 69... Qd8+ {[%clk 0:00:04.9]} 70. Kg7 {[%clk 0:00:04.9]}
70... Qc7+ {[%clk 0:00:05.8]} 71. Kg8 {[%clk 0:00:05.3]} 71... Qc8+ {[%clk
0:00:06.3]} 72. Kg7 {[%clk 0:00:05.8]} 72... Qd7+ {[%clk 0:00:07]} 73. Kg8
{[%clk 0:00:06.4]} 73... Qe6+ {[%clk 0:00:07.6]} 74. Kg7 {[%clk 0:00:06.8]}
74... Qe7+ {[%clk 0:00:08]} 75. Kg8 {[%clk 0:00:06.6]} 75... Qe8+ {[%clk
0:00:08.2]} 1/2-1/2

[Event "*** Titled Tuesday Blitz"]
[Site "Chess.com"]
[Date "2021.03.09"]
[Round "2"]
[White "Anton_Demchenko"]
[Black "MFBerna"]
[Result "1/2-1/2"]
[WhiteElo "2879"]
[BlackElo "2369"]
[TimeControl "180+1"]
[EndTime "10:20:54 PST"]
[Termination "Game drawn by repetition"]

1. e4 {[%clk 0:03:00.9]} 1... c6 {[%clk 0:02:59]} 2. d4 {[%clk 0:02:56]} 2... d5
{[%clk 0:02:59.9]} 3. Nd2 {[%clk 0:02:56.7]} 3... dxe4 {[%clk 0:02:58.7]} 4.
Nxe4 {[%clk 0:02:57.6]} 4... Nf6 {[%clk 0:02:58.5]} 5. Nxf6+ {[%clk 0:02:57.8]}
5... exf6 {[%clk 0:02:59.4]} 6. Nf3 {[%clk 0:02:58.6]} 6... Bd6 {[%clk
0:02:59.9]} 7. Bd3 {[%clk 0:02:59.2]} 7... O-O {[%clk 0:03:00.5]} 8. O-O {[%clk
0:03:00]} 8... Qc7 {[%clk 0:02:59.8]} 9. c4 {[%clk 0:02:50.2]} 9... Bg4 {[%clk
0:02:58.4]} 10. h3 {[%clk 0:02:50.3]} 10... Bh5 {[%clk 0:02:58.8]} 11. Bf5
{[%clk 0:02:50.3]} 11... Nd7 {[%clk 0:02:52.2]} 12. Qd3 {[%clk 0:02:49.4]} 12...
Bg6 {[%clk 0:02:51.5]} 13. Nh4 {[%clk 0:02:45.9]} 13... Rad8 {[%clk 0:02:48.1]}
14. Rd1 {[%clk 0:02:38.3]} 14... Rfe8 {[%clk 0:02:47.3]} 15. Qf3 {[%clk
0:02:36.3]} 15... Nf8 {[%clk 0:02:37.8]} 16. g4 {[%clk 0:02:20.3]} 16... Ne6
{[%clk 0:02:33]} 17. Bxe6 {[%clk 0:01:33.5]} 17... Rxe6 {[%clk 0:02:33.9]} 18.
Nxg6 {[%clk 0:01:32.7]} 18... hxg6 {[%clk 0:02:33.7]} 19. Be3 {[%clk 0:01:33.2]}
19... Rde8 {[%clk 0:02:28.4]} 20. d5 {[%clk 0:01:19.4]} 20... cxd5 {[%clk
0:02:25.4]} 21. cxd5 {[%clk 0:01:19.7]} 21... R6e7 {[%clk 0:02:04.8]} 22. Rac1
{[%clk 0:01:17.5]} 22... Qa5 {[%clk 0:02:04.8]} 23. a3 {[%clk 0:01:16.4]} 23...
Qa4 {[%clk 0:01:55.4]} 24. Rd3 {[%clk 0:01:03.9]} 24... a6 {[%clk 0:01:41.1]}
25. Kg2 {[%clk 0:00:55.5]} 25... Qb5 {[%clk 0:01:36.4]} 26. Rd2 {[%clk
0:00:55.4]} 26... g5 {[%clk 0:01:25.9]} 27. Rh1 {[%clk 0:00:35.5]} 27... Re4
{[%clk 0:01:11.9]} 28. Rhd1 {[%clk 0:00:21.3]} 28... Qb3 {[%clk 0:01:00.6]} 29.
Ba7 {[%clk 0:00:14.2]} 29... Qb5 {[%clk 0:00:54.7]} 30. Be3 {[%clk 0:00:13.7]}
30... Qb3 {[%clk 0:00:53.4]} 31. Bd4 {[%clk 0:00:13.9]} 31... Qb5 {[%clk
0:00:41.6]} 32. Bc3 {[%clk 0:00:12.3]} 32... Rf4 {[%clk 0:00:38.8]} 33. Qd3
{[%clk 0:00:12.9]} 33... Qb6 {[%clk 0:00:35.3]} 34. Bd4 {[%clk 0:00:12.6]} 34...
Qa5 {[%clk 0:00:30.5]} 35. Be3 {[%clk 0:00:12.7]} 35... Rfe4 {[%clk 0:00:29]}
36. Rc2 {[%clk 0:00:12.1]} 36... Qa4 {[%clk 0:00:26.2]} 37. b4 {[%clk
0:00:11.7]} 37... Qd7 {[%clk 0:00:24.8]} 38. Rcd2 {[%clk 0:00:10.9]} 38... f5
{[%clk 0:00:18.5]} 39. Bxg5 {[%clk 0:00:11]} 39... fxg4 {[%clk 0:00:18.5]} 40.
h4 {[%clk 0:00:11.6]} 40... Qf5 {[%clk 0:00:17.8]} 41. Re2 {[%clk 0:00:09.2]}
41... f6 {[%clk 0:00:13.4]} 42. Rxe4 {[%clk 0:00:08.4]} 42... Rxe4 {[%clk
0:00:14.3]} 43. Bc1 {[%clk 0:00:07.7]} 43... Qe5 {[%clk 0:00:10.9]} 44. Qg3
{[%clk 0:00:05.4]} 44... Qxg3+ {[%clk 0:00:07.5]} 45. fxg3 {[%clk 0:00:05.6]}
45... Re2+ {[%clk 0:00:08.4]} 46. Kf1 {[%clk 0:00:06.2]} 46... Ra2 {[%clk
0:00:06.2]} 47. Bf4 {[%clk 0:00:04.1]} 47... Bxf4 {[%clk 0:00:06.3]} 48. gxf4
{[%clk 0:00:05]} 48... Kf7 {[%clk 0:00:06.8]} 49. d6 {[%clk 0:00:05.4]} 49...
Ke8 {[%clk 0:00:07.3]} 50. Re1+ {[%clk 0:00:04.3]} 50... Kd8 {[%clk 0:00:07]}
51. Re7 {[%clk 0:00:04.5]} 51... Rxa3 {[%clk 0:00:06.2]} 52. Rxg7 {[%clk
0:00:04.7]} 52... Rf3+ {[%clk 0:00:06.5]} 53. Kg2 {[%clk 0:00:04.6]} 53... Rxf4
{[%clk 0:00:07.4]} 54. h5 {[%clk 0:00:03.9]} 54... Rf5 {[%clk 0:00:02.8]} 55. h6
{[%clk 0:00:03.8]} 55... Rh5 {[%clk 0:00:03.7]} 56. h7 {[%clk 0:00:04.5]} 56...
f5 {[%clk 0:00:04.1]} 57. Rg8+ {[%clk 0:00:04.4]} 57... Kd7 {[%clk 0:00:04.6]}
58. h8=Q {[%clk 0:00:05.3]} 58... Rxh8 {[%clk 0:00:05.2]} 59. Rxh8 {[%clk
0:00:06.2]} 59... Kxd6 {[%clk 0:00:05.9]} 60. Kg3 {[%clk 0:00:06.7]} 60... Kc6
{[%clk 0:00:05.5]} 61. Rh5 {[%clk 0:00:06.4]} 61... Kb5 {[%clk 0:00:04.9]} 62.
Rh7 {[%clk 0:00:05]} 62... Kxb4 {[%clk 0:00:05.8]} 63. Rxb7+ {[%clk 0:00:04.4]}
63... Kc4 {[%clk 0:00:03.7]} 64. Ra7 {[%clk 0:00:04.5]} 64... Kb5 {[%clk
0:00:03.6]} 65. Kf4 {[%clk 0:00:05.4]} 65... a5 {[%clk 0:00:04]} 66. Kxf5 {[%clk
0:00:05.6]} 66... g3 {[%clk 0:00:04.1]} 67. Rg7 {[%clk 0:00:05.6]} 67... a4
{[%clk 0:00:03.2]} 68. Rxg3 {[%clk 0:00:06.2]} 68... Kb4 {[%clk 0:00:03.8]} 69.
Ke4 {[%clk 0:00:06.8]} 69... a3 {[%clk 0:00:04.7]} 70. Rg8 {[%clk 0:00:02.7]}
70... Kb3 {[%clk 0:00:05.6]} 71. Rb8+ {[%clk 0:00:02.8]} 71... Kc2 {[%clk
0:00:05.7]} 72. Ra8 {[%clk 0:00:02.8]} 72... Kb2 {[%clk 0:00:05.8]} 73. Kd3
{[%clk 0:00:03.3]} 73... a2 {[%clk 0:00:06.2]} 74. Rb8+ {[%clk 0:00:04]} 74...
Kc1 {[%clk 0:00:03.7]} 75. Rc8+ {[%clk 0:00:04.4]} 75... Kb1 {[%clk 0:00:04.2]}
76. Rb8+ {[%clk 0:00:04.3]} 76... Kc1 {[%clk 0:00:04.7]} 77. Ra8 {[%clk
0:00:04.7]} 77... Kb1 {[%clk 0:00:05.1]} 78. Rb8+ {[%clk 0:00:03.5]} 78... Kc1
{[%clk 0:00:05.5]} 1/2-1/2

[Event "*** Titled Tuesday Blitz"]
[Site "Chess.com"]
[Date "2021.03.09"]
[Round "2"]
[White "kakakz"]
[Black "Chesswizard_2007"]
[Result "1-0"]
[WhiteElo "2407"]
[BlackElo "2689"]
[TimeControl "180+1"]
[EndTime "10:20:55 PST"]
[Termination "kakakz won by resignation"]

1. g3 {[%clk 0:03:00.9]} 1... h5 {[%clk 0:02:57.7]} 2. Bg2 {[%clk 0:03:01.8]}
2... h4 {[%clk 0:02:58.3]} 3. Nf3 {[%clk 0:03:01.2]} 3... h3 {[%clk 0:02:41.3]}
4. Bf1 {[%clk 0:03:00.3]} 4... d5 {[%clk 0:02:39.2]} 5. d3 {[%clk 0:02:59.7]}
5... Nc6 {[%clk 0:02:35.5]} 6. d4 {[%clk 0:02:52.1]} 6... Bg4 {[%clk 0:02:27.8]}
7. Bf4 {[%clk 0:02:48.9]} 7... Nf6 {[%clk 0:02:21.3]} 8. Nbd2 {[%clk 0:02:47.8]}
8... e6 {[%clk 0:02:21]} 9. Ne5 {[%clk 0:02:46.4]} 9... Bd6 {[%clk 0:02:17.7]}
10. c3 {[%clk 0:02:41.9]} 10... Bxe5 {[%clk 0:02:16.8]} 11. dxe5 {[%clk
0:02:38.9]} 11... Nd7 {[%clk 0:02:12.8]} 12. Qb3 {[%clk 0:02:32.4]} 12... Rb8
{[%clk 0:02:10.4]} 13. Nf3 {[%clk 0:02:16.3]} 13... Bxf3 {[%clk 0:02:08.4]} 14.
exf3 {[%clk 0:02:17.2]} 14... g5 {[%clk 0:02:07.7]} 15. Be3 {[%clk 0:02:14.7]}
15... Ndxe5 {[%clk 0:02:08.3]} 16. Be2 {[%clk 0:02:14.9]} 16... Qf6 {[%clk
0:02:08]} 17. O-O-O {[%clk 0:02:09.6]} 17... Nxf3 {[%clk 0:01:58]} 18. c4 {[%clk
0:01:58.3]} 18... d4 {[%clk 0:01:54.7]} 19. Bd2 {[%clk 0:01:56.3]} 19... Nxd2
{[%clk 0:01:53.1]} 20. Rxd2 {[%clk 0:01:56.7]} 20... Qe7 {[%clk 0:01:39.3]} 21.
Bf3 {[%clk 0:01:56]} 21... O-O {[%clk 0:01:38.1]} 22. Bg4 {[%clk 0:01:42.8]}
22... f5 {[%clk 0:01:18.4]} 23. Bxh3 {[%clk 0:01:42.5]} 23... e5 {[%clk
0:01:16]} 24. Bg2 {[%clk 0:01:34.3]} 24... e4 {[%clk 0:01:15.4]} 25. Re1 {[%clk
0:01:29.1]} 25... Qc5 {[%clk 0:01:06.9]} 26. g4 {[%clk 0:01:26.4]} 26... Ne5
{[%clk 0:01:03.5]} 27. gxf5 {[%clk 0:01:23.9]} 27... Nd3+ {[%clk 0:00:58.3]} 28.
Rxd3 {[%clk 0:01:24]} 28... exd3 {[%clk 0:00:59.2]} 29. Bd5+ {[%clk 0:01:24.1]}
29... Kg7 {[%clk 0:00:57.6]} 30. Qxd3 {[%clk 0:01:19.2]} 30... Rbe8 {[%clk
0:00:56.6]} 31. Rg1 {[%clk 0:01:18.2]} 31... Kf6 {[%clk 0:00:46.5]} 32. h4
{[%clk 0:01:16.5]} 32... c6 {[%clk 0:00:39.2]} 33. hxg5+ {[%clk 0:01:13.5]}
33... Ke7 {[%clk 0:00:38.4]} 34. Be6 {[%clk 0:01:10.3]} 34... Kd8 {[%clk
0:00:37.3]} 35. g6 {[%clk 0:01:09.1]} 35... Rxe6 {[%clk 0:00:22.6]} 36. fxe6
{[%clk 0:01:08.8]} 36... Ke7 {[%clk 0:00:22.9]} 37. g7 {[%clk 0:01:02.5]} 37...
Rg8 {[%clk 0:00:21.4]} 38. Qh7 {[%clk 0:00:56.6]} 38... Qxc4+ {[%clk 0:00:21.4]}
39. Kb1 {[%clk 0:00:56.9]} 39... Qxe6 {[%clk 0:00:18.9]} 40. Qh4+ {[%clk
0:00:40.3]} 40... Qf6 {[%clk 0:00:18]} 41. Qe4+ {[%clk 0:00:30.8]} 41... Kf7
{[%clk 0:00:12.4]} 42. Rg3 {[%clk 0:00:30.8]} 42... Qh6 {[%clk 0:00:04.8]} 43.
Rf3+ {[%clk 0:00:22.1]} 43... Kxg7 {[%clk 0:00:04.8]} 44. Qxd4+ {[%clk
0:00:18.2]} 44... Kh7 {[%clk 0:00:05.3]} 45. Qe4+ {[%clk 0:00:16.9]} 45... Kh8
{[%clk 0:00:02]} 46. Qe5+ {[%clk 0:00:15.8]} 46... Rg7 {[%clk 0:00:02.6]} 47.
Qe8+ {[%clk 0:00:14.8]} 47... Kh7 {[%clk 0:00:02.7]} 48. Qe4+ {[%clk 0:00:14.4]}
48... Qg6 {[%clk 0:00:02.5]} 49. Rh3+ {[%clk 0:00:13]} 49... Kg8 {[%clk
0:00:02.6]} 50. Qxg6 {[%clk 0:00:12.9]} 50... Rxg6 {[%clk 0:00:03.5]} 51. Rf3
{[%clk 0:00:11.1]} 51... Rg1+ {[%clk 0:00:02.6]} 52. Kc2 {[%clk 0:00:11.5]}
52... Ra1 {[%clk 0:00:03.3]} 53. a3 {[%clk 0:00:11.5]} 53... a5 {[%clk
0:00:03.4]} 54. Kb3 {[%clk 0:00:11.7]} 54... b5 {[%clk 0:00:03.7]} 55. Rc3
{[%clk 0:00:10.8]} 55... a4+ {[%clk 0:00:03.4]} 56. Kc2 {[%clk 0:00:09.7]} 56...
Rf1 {[%clk 0:00:03.5]} 57. Rxc6 {[%clk 0:00:09.3]} 57... Rxf2+ {[%clk
0:00:04.1]} 58. Kc3 {[%clk 0:00:09.4]} 58... Rf3+ {[%clk 0:00:04.8]} 59. Kc2
{[%clk 0:00:08.2]} 59... Kf7 {[%clk 0:00:05.1]} 60. Rc5 {[%clk 0:00:07.6]} 60...
Rb3 {[%clk 0:00:05.1]} 61. Rc3 {[%clk 0:00:07]} 61... b4 {[%clk 0:00:03.1]} 62.
Rxb3 {[%clk 0:00:06.5]} 62... axb3+ {[%clk 0:00:04]} 63. Kxb3 {[%clk 0:00:06]}
63... bxa3 {[%clk 0:00:04.9]} 64. Kxa3 {[%clk 0:00:06.6]} 64... Ke6 {[%clk
0:00:05.6]} 65. Kb4 {[%clk 0:00:07.2]} 65... Kd6 {[%clk 0:00:05.8]} 66. Kb5
{[%clk 0:00:07.6]} 66... Kc7 {[%clk 0:00:05.9]} 67. Kc5 {[%clk 0:00:07.5]} 67...
Kb7 {[%clk 0:00:06.1]} 68. b3 {[%clk 0:00:07.4]} 68... Kc7 {[%clk 0:00:06.2]}
69. Kb5 {[%clk 0:00:07.7]} 69... Kb7 {[%clk 0:00:06.6]} 70. b4 {[%clk
0:00:08.1]} 70... Kb8 {[%clk 0:00:06.8]} 71. Kb6 {[%clk 0:00:08.1]} 71... Ka8
{[%clk 0:00:07]} 72. Kc7 {[%clk 0:00:07.5]} 72... Ka7 {[%clk 0:00:07.3]} 73. b5
{[%clk 0:00:07.8]} 73... Ka8 {[%clk 0:00:07.9]} 74. Kb6 {[%clk 0:00:06.7]} 74...
Kb8 {[%clk 0:00:08.3]} 75. Ka6 {[%clk 0:00:07]} 75... Kc7 {[%clk 0:00:04.1]} 76.
Ka7 {[%clk 0:00:05.4]} 76... Kd6 {[%clk 0:00:04.1]} 77. b6 {[%clk 0:00:06.3]}
1-0

[Event "*** Titled Tuesday Blitz"]
[Site "Chess.com"]
[Date "2021.03.09"]
[Round "3"]
[White "Smile2005"]
[Black "LawrenceTrent"]
[Result "1-0"]
[WhiteElo "2389"]
[BlackElo "2545"]
[TimeControl "180+1"]
[EndTime "10:22:43 PST"]
[Termination "Smile2005 won by resignation"]

1. Nf3 {[%clk 0:02:59.6]} 1... d6 {[%clk 0:02:55.9]} 2. g3 {[%clk 0:03:00.5]}
2... Nf6 {[%clk 0:02:48.5]} 3. Bg2 {[%clk 0:03:01.4]} 3... g6 {[%clk 0:02:48.3]}
4. O-O {[%clk 0:03:02.3]} 4... Bg7 {[%clk 0:02:48.3]} 5. d3 {[%clk 0:03:02.3]}
5... O-O {[%clk 0:02:48.7]} 6. e4 {[%clk 0:03:02.9]} 6... c5 {[%clk 0:02:49.1]}
7. Nc3 {[%clk 0:03:02.8]} 7... Nc6 {[%clk 0:02:48.7]} 8. Bg5 {[%clk 0:03:03.1]}
8... h6 {[%clk 0:02:48.6]} 9. Bf4 {[%clk 0:03:03]} 9... Rb8 {[%clk 0:02:47.7]}
10. Qc1 {[%clk 0:03:01.7]} 10... Kh8 {[%clk 0:02:46.1]} 11. Bxh6 {[%clk
0:03:01.4]} 1-0